Department Family,Entity,Date,Expense Type,Expense Area,Supplier,Transaction Number,AP Amount,VAT Registration Number,Purchase Invoice Number,
Department of Health,Bridgewater Community Healthcare NHS Foundation Trust,11/30/2017,Services Received - NHSTs,Minor Injuries Unit and Walk In Centre - St Helens,ST HELENS & KNOWSLEY HOSPITALS NHS TRUST,24624544,"26,731.45",654943996,16767432,
Department of Health,Bridgewater Community Healthcare NHS Foundation Trust,11/30/2017,Contr Other External,Minor Injuries Unit and Walk In Centre - St Helens,MILLENIUM CENTRE,24624548,"83,500.00",,BWCHC026,
Department of Health,Bridgewater Community Healthcare NHS Foundation Trust,11/30/2017,SrvcsRecd-FoundationTrust,ICS,WRIGHTINGTON WIGAN & LEIGH NHS FOUNDATION TRUST,24624556,"906,771.72",654951509,55567270,
Department of Health,Bridgewater Community Healthcare NHS Foundation Trust,11/30/2017,Services Received - NHSTs,Urgent Care Centre - Halton,ST HELENS & KNOWSLEY HOSPITALS NHS TRUST,24624631,"40,391.35",654943996,16769715,
Department of Health,Bridgewater Community Healthcare NHS Foundation Trust,11/30/2017,Continence Products,Continence Adult Halton,SCA HYGIENE PRODUCTS UK LTD,24624638,"25,557.61",600433106,6401303855,
Department of Health,Bridgewater Community Healthcare NHS Foundation Trust,11/30/2017,Contr Other External,Minor Injuries Unit and Walk In Centre - St Helens,MILLENIUM CENTRE,24624760,"83,500.00",,BWCHC027,
Department of Health,Bridgewater Community Healthcare NHS Foundation Trust,11/30/2017,OOH Comms Equip/GP Rotas,GP Out of Hours Service - Wigan,DR JK AGARWALA,24626680,"39,293.88",,SEPT172901,
Department of Health,Bridgewater Community Healthcare NHS Foundation Trust,11/30/2017,Rent,Bevan House,SHARMA INVESTMENTS LTD,24681913,"33,125.00",,BE17091017,
Department of Health,Bridgewater Community Healthcare NHS Foundation Trust,11/30/2017,OOH Comms Equip/GP Rotas,GP Out of Hours Service - Wigan,DR JK AGARWALA,24694343,"26,010.81",,OCT172901,
Department of Health,Bridgewater Community Healthcare NHS Foundation Trust,11/30/2017,External Consultancy Fees,Offender Health - Wymott,IC CUBED (UK) LTD,24702724,"38,212.50",GB167903874,BRIDGE019,
Department of Health,Bridgewater Community Healthcare NHS Foundation Trust,11/30/2017,Rent,Penketh Health Centre,NHS PROPERTY SERVICES LTD,24721454,"46,464.44",,48479184,
Department of Health,Bridgewater Community Healthcare NHS Foundation Trust,11/30/2017,Rent,Penketh Health Centre,NHS PROPERTY SERVICES LTD,24722474,"46,464.45",,48513463,
Department of Health,Bridgewater Community Healthcare NHS Foundation Trust,11/30/2017,Rent,0-19 Services - Oldham,NHS PROPERTY SERVICES LTD,24722487,"28,648.33",,48524343,
Department of Health,Bridgewater Community Healthcare NHS Foundation Trust,11/30/2017,Rent,0-19 Services - Oldham,NHS PROPERTY SERVICES LTD,24722488,"31,536.11",,48524351,
Department of Health,Bridgewater Community Healthcare NHS Foundation Trust,11/30/2017,Rent,0-19 Services - Oldham,NHS PROPERTY SERVICES LTD,24722495,"28,648.33",,48524679,
Department of Health,Bridgewater Community Healthcare NHS Foundation Trust,11/30/2017,Rent,0-19 Services - Oldham,NHS PROPERTY SERVICES LTD,24722498,"31,536.11",,48524687,
Department of Health,Bridgewater Community Healthcare NHS Foundation Trust,11/30/2017,Rent,0-19 Services - Oldham,NHS PROPERTY SERVICES LTD,24722501,"28,648.33",,48524871,
Department of Health,Bridgewater Community Healthcare NHS Foundation Trust,11/30/2017,Rent,0-19 Services - Oldham,NHS PROPERTY SERVICES LTD,24722507,"31,536.11",,48524877,
Department of Health,Bridgewater Community Healthcare NHS Foundation Trust,11/30/2017,Rent,0-19 Services - Oldham,NHS PROPERTY SERVICES LTD,24722518,"28,648.31",,48525412,
Department of Health,Bridgewater Community Healthcare NHS Foundation Trust,11/30/2017,Rent,0-19 Services - Oldham,NHS PROPERTY SERVICES LTD,24722524,"31,536.10",,48525414,
Department of Health,Bridgewater Community Healthcare NHS Foundation Trust,11/30/2017,SrvcsRecd-FoundationTrust,Offender Health - Risley,GREATER MANCHESTER WEST MENTAL HEALTH NHS FOUNDATION TRUST,24736164,"44,339.93",654929594,0000026205,
Department of Health,Bridgewater Community Healthcare NHS Foundation Trust,11/30/2017,SrvcsRecd-FoundationTrust,Offender Health HM Prison Healthcare (Hindley),GREATER MANCHESTER WEST MENTAL HEALTH NHS FOUNDATION TRUST,24736164,"77,442.14",654929594,0000026205,
Department of Health,Bridgewater Community Healthcare NHS Foundation Trust,11/30/2017,SrvcsRecd-FoundationTrust,Sexual Health - Trafford,MANCHESTER UNIVERSITY NHS FOUNDATION TRUST,24765240,"52,705.26",,6210076490,
Department of Health,Bridgewater Community Healthcare NHS Foundation Trust,11/30/2017,SrvcsRecd-FoundationTrust,Sexual Health - Trafford,MANCHESTER UNIVERSITY NHS FOUNDATION TRUST,24765241,"99,206.00",,6210086344,
Department of Health,Bridgewater Community Healthcare NHS Foundation Trust,11/30/2017,Services Received - NHSTs,IT Systems and Management,ST HELENS & KNOWSLEY HOSPITALS NHS TRUST,24765249,"62,222.19",654943996,16770562,
Department of Health,Bridgewater Community Healthcare NHS Foundation Trust,11/30/2017,SrvcsRecd-FoundationTrust,Human Resources,WRIGHTINGTON WIGAN & LEIGH NHS FOUNDATION TRUST,24779304,"43,950.00",654951509,55570984,
Department of Health,Bridgewater Community Healthcare NHS Foundation Trust,11/30/2017,Services Received - NHSTs,Dental - Warrington,EAST CHESHIRE NHS TRUST,24834043,"74,000.00",654919892,17499079,
Department of Health,Bridgewater Community Healthcare NHS Foundation Trust,11/30/2017,Continence Products,Continence Adult - Warrington,SCA HYGIENE PRODUCTS UK LTD,24834074,"29,837.40",600433106,6401315768,
Department of Health,Bridgewater Community Healthcare NHS Foundation Trust,11/30/2017,Drugs,Medicines Management,NHS BUSINESS SERVICES AUTHORITY,24851952,"84,635.39",654434729,1000053741,
Department of Health,Bridgewater Community Healthcare NHS Foundation Trust,11/30/2017,External Consultancy Fees,Offender Health - Wymott,IC CUBED (UK) LTD,24868690,"38,737.50",GB167903874,BRIDGE021,
Department of Health,Bridgewater Community Healthcare NHS Foundation Trust,11/30/2017,External Consultancy Fees,Strategic Development and Transformation,TRANSFORMING CARE LTD,24888514,"31,140.00",,TC2017BRIDGE1,
Department of Health,Bridgewater Community Healthcare NHS Foundation Trust,11/30/2017,SrvcsRecd-FoundationTrust,ICS,WRIGHTINGTON WIGAN & LEIGH NHS FOUNDATION TRUST,24918207,"226,692.93",654951509,55568323,
Department of Health,Bridgewater Community Healthcare NHS Foundation Trust,11/30/2017,SrvcsRecd-FoundationTrust,ICS,WRIGHTINGTON WIGAN & LEIGH NHS FOUNDATION TRUST,24918208,"226,692.93",654951509,55568334,
Department of Health,Bridgewater Community Healthcare NHS Foundation Trust,11/30/2017,Hcare Srv Rec NHS Trust,Midwifery - Halton,ST HELENS & KNOWSLEY HOSPITALS NHS TRUST,24918272,"55,500.00",654943996,16770547,
Department of Health,Bridgewater Community Healthcare NHS Foundation Trust,11/30/2017,SrvcsRecd-FoundationTrust,ICS,WRIGHTINGTON WIGAN & LEIGH NHS FOUNDATION TRUST,24918275,"226,692.93",654951509,55570753,
Department of Health,Bridgewater Community Healthcare NHS Foundation Trust,11/30/2017,Stationery,Procurement,CLARES OFFICE SUPPLIES LTD,24924339,"36,690.19",107340310,SINV00370678,
Department of Health,Bridgewater Community Healthcare NHS Foundation Trust,11/30/2017,Stationery,Procurement,CLARES OFFICE SUPPLIES LTD,24924342,"36,690.19",107340310,SINV00370677,
Department of Health,Bridgewater Community Healthcare NHS Foundation Trust,11/30/2017,Continence Products,Continence Adult - Warrington,SCA HYGIENE PRODUCTS UK LTD,24943508,"40,119.45",600433106,6401303850,
